bitfinex-derivatives/quotes_BNBF0:USTF0_20250309
["timestamp","ask_amount","ask_price","bid_price","bid_amount"]
[1741529809454,0.667,569.63,568.58,0.29725718]
[1741529809758,0.667,569.63,568.59,0.3517473]
[1741529810160,0.667,569.63,568.6,0.29725437]
[1741529810355,0.667,569.63,568.61,0.35173493]
[1741529810553,0.667,569.63,568.62,0.29725437]
[1741529810962,0.667,569.63,568.62,0.64898311]
[1741529811160,0.30577681,569.62,568.63,0.29725437]
[1741529812965,0.667,569.63,568.63,0.29725437]
[1741529813155,0.30580234,569.61,568.63,0.29725437]
[1741529813559,0.579,569.6,568.63,0.29725437]
[1741529814259,0.589,569.59,568.63,0.29725437]
[1741529814561,0.665,569.58,568.63,0.29725437]
[1741529815461,0.665,569.58,568.62,0.35172874]
[1741529815663,0.665,569.58,568.63,0.29725805]
[1741529816663,0.30579293,569.57,568.63,0.29725805]
[1741529817263,0.30579293,569.57,568.62,0.35172874]
[1741529817463,0.30579293,569.57,568.63,0.29724915]
[1741529817764,0.81579293,569.57,568.63,0.29724915]
[1741529818967,0.51,569.57,568.63,0.29724915]
[1741529819262,0.30579427,569.56,568.63,0.29724915]
[1741529821474,0.561,569.55,568.63,0.29724915]
[1741529822477,0.30582115,569.54,568.62,0.35172874]
[1741529824077,0.65698173,569.54,568.62,0.35172874]
[1741529824672,0.32298725,569.53,568.31,1.29433963]
[1741529824876,0.32298725,569.53,568.32,0.29742801]
[1741529825370,0.32298725,569.53,568.32,0.60335132]
[1741529825575,0.542,569.52,568.33,0.29742801]
[1741529825774,0.32298725,569.51,568.33,0.29742801]
[1741529825981,0.542,569.52,568.32,0.30592331]
[1741529826181,0.32300778,569.51,568.33,0.29743968]
[1741529826373,0.32300976,569.5,568.34,0.29744165]
[1741529826678,0.32300976,569.49,568.35,0.29744165]
[1741529826877,0.506,569.49,568.33,0.29744165]
[1741529827081,0.32300976,569.48,568.34,0.29744165]
[1741529827375,0.32300976,569.48,568.35,0.29744165]
[1741529827572,0.32300976,569.48,568.36,0.29744165]
[1741529827771,0.506,569.49,568.32,0.30592331]
[1741529827979,0.67424833,569.48,568.33,0.2974823]
[1741529828172,0.6742545,569.47,567.97,0.2974823]
[1741529828384,0.67426066,569.46,568.18,0.30601612]
[1741529828572,0.67426683,569.45,568.19,0.29751912]
[1741529828771,0.674273,569.44,567.99,0.29751912]
[1741529828976,0.32305075,569.43,568.0,0.29751912]
[1741529829274,0.32305075,569.43,568.01,0.29751912]
[1741529829476,0.35122225,569.44,568.0,0.30603765]
[1741529829877,0.32311555,569.43,568.01,0.29754613]
[1741529830577,0.95222225,569.44,568.01,0.29754613]
[1741529831478,0.95222225,569.44,568.03,0.35209407]
[1741529831674,0.35122842,569.43,568.04,0.29754613]
[1741529831878,0.32303118,569.42,568.05,0.35208168]
[1741529832076,0.35124075,569.41,568.06,0.29754613]
[1741529832274,0.32303118,569.4,568.06,0.29754613]
[1741529832479,1.06503118,569.4,568.06,0.29754613]
[1741529832675,0.32303118,569.39,568.06,0.29754613]
[1741529832879,0.35126543,569.37,568.06,0.29754613]
[1741529833180,0.32303118,569.36,568.06,0.29754613]
[1741529833881,0.35128394,569.34,568.06,0.29754613]
[1741529834381,0.32303118,569.33,568.06,0.29754613]
[1741529834581,0.35130245,569.31,568.06,0.29754613]
[1741529834881,0.82803118,569.3,568.06,0.29754613]
[1741529835081,0.35131479,569.29,568.05,0.35208168]
[1741529835282,0.32314869,569.28,568.06,0.29757873]
[1741529835484,0.35132713,569.27,568.06,0.29757873]
[1741529835692,0.32314869,569.26,568.07,0.35206928]
[1741529835981,0.32314869,569.26,568.08,0.29757873]
[1741529836181,0.32314869,569.26,568.09,0.35205689]
[1741529836382,0.35132713,569.27,568.1,0.29757873]
[1741529836583,0.35132713,569.27,568.11,0.35204449]
[1741529836979,0.35132713,569.27,568.12,0.29757873]
[1741529837182,0.35132713,569.27,568.13,0.3520321]
[1741529837380,0.32308924,569.26,568.14,0.29757873]
[1741529838185,0.30603765,569.25,568.14,0.29757873]
[1741529838483,0.32308924,569.24,568.14,0.29757873]
[1741529838684,0.30603765,569.25,568.13,0.3520321]
[1741529838685,0.32311422,569.23,568.15,0.29754497]
[1741529838984,0.32311422,569.22,568.16,0.29754497]
[1741529839282,0.32311422,569.22,568.13,0.3520321]
[1741529839283,0.30603765,569.25,568.17,0.29754497]
[1741529839483,0.30603765,569.25,568.14,0.29754497]
[1741529839681,0.32311368,569.24,568.15,0.29754497]
[1741529839882,0.32311368,569.24,568.14,0.29754497]
[1741529840078,0.32311368,569.23,568.14,0.29754497]
[1741529840283,0.32311368,569.26,568.14,0.29754497]
[1741529840484,1.06411368,569.22,568.14,0.29754497]
[1741529840679,0.67447785,569.21,568.14,0.29754497]
[1741529840884,0.67448402,569.2,568.14,0.29754497]
[1741529841077,0.32311368,569.19,568.14,0.29754497]
[1741529841480,0.35138269,569.18,568.14,0.29754497]
[1741529841682,0.32311368,569.17,568.14,0.29754497]
[1741529842287,0.35139503,569.16,568.13,0.3520321]
[1741529842586,0.32320742,569.15,568.14,0.29763683]
[1741529842788,0.35140738,569.14,568.13,0.3520321]
[1741529842982,0.32320742,569.13,568.14,0.2976351]
[1741529843181,0.35141973,569.12,568.14,0.2976351]
[1741529843988,0.763,569.11,568.14,0.2976351]
[1741529844188,0.763,569.11,568.15,0.29754711]
[1741529844486,0.763,569.11,568.16,0.29754711]
[1741529844687,0.763,569.11,568.14,0.29754711]
[1741529846091,0.82916284,569.1,568.14,0.29754711]
[1741529846285,0.32316284,569.09,568.14,0.29754711]
[1741529846690,0.764,569.08,568.14,0.29754711]
[1741529846886,0.32316284,569.07,568.14,0.29754711]
[1741529847090,0.764,569.08,567.38,1.29433963]
[1741529847293,0.764,569.08,567.4,0.35248501]
[1741529847488,0.764,569.08,567.41,0.29764991]
[1741529847693,0.764,569.08,567.42,0.29764991]
[1741529847891,0.764,569.08,567.43,0.29765952]
[1741529848190,0.764,569.08,567.44,0.29765952]
[1741529848394,0.764,569.08,567.46,0.35244774]
[1741529848589,0.764,569.08,567.47,0.29765952]
[1741529848790,0.764,569.08,567.49,0.35242911]
[1741529848997,0.764,569.08,567.5,0.29765952]
[1741529849207,1.503,569.08,567.52,0.35241048]
[1741529849503,0.30618305,569.07,567.52,0.35241048]
[1741529849703,0.30618305,569.07,567.53,0.29761811]
[1741529849901,0.30618305,569.07,567.55,0.35239185]
[1741529850103,0.30618305,569.07,567.56,0.29761811]
[1741529850401,0.30618305,569.07,567.58,0.35237323]
[1741529850601,0.30618305,569.07,567.59,0.29761811]
[1741529850800,0.30618305,569.07,567.61,0.3523546]
[1741529851000,0.30618305,569.07,567.62,0.29761811]
[1741529851205,0.30618305,569.07,567.64,0.35233598]
[1741529851694,0.30618305,569.07,567.65,0.29760037]
[1741529851895,1.503,569.08,567.67,0.35231736]
[1741529852098,1.503,569.08,567.68,0.29760037]
[1741529852300,0.3061615,569.07,567.7,0.35229874]
[1741529852595,0.3061615,569.07,567.71,0.29760037]
[1741529852797,0.3061615,569.07,567.73,0.35228013]
[1741529853002,0.3061615,569.07,567.74,0.29760037]
[1741529853194,0.3061615,569.07,567.76,0.35226151]
[1741529853501,0.3061615,569.07,567.77,0.29763055]
[1741529853701,0.3061615,569.07,567.78,0.35224911]
[1741529854000,0.3061615,569.07,567.79,0.29763055]
[1741529854900,1.503,569.08,567.79,0.29763055]
[1741529855101,0.723,569.07,567.79,0.29763055]
[1741529855302,0.30615611,569.06,567.79,0.29763055]
[1741529855503,0.30615611,569.06,567.8,0.3522367]
[1741529855702,0.30615611,569.06,567.81,0.29763055]
[1741529855903,0.30615611,569.06,567.82,0.35222429]
[1741529856202,0.91246296,569.05,567.83,0.29763055]
[1741529856397,0.35146914,569.04,567.83,0.29763055]
[1741529856602,0.35146914,569.04,567.83,0.64984864]
[1741529856902,0.35146914,569.04,567.84,0.29763055]
[1741529857102,0.65,569.03,567.85,0.29766106]
[1741529857397,0.35148149,569.02,567.86,0.29766106]
[1741529857603,0.35148149,569.02,567.84,0.29766106]
[1741529857798,0.538,569.01,567.83,0.35221809]
[1741529861706,0.32331478,569.0,567.83,0.35221809]
[1741529862300,0.538,569.01,567.83,0.35221809]
[1741529863408,0.3232978,569.0,567.84,0.29772549]
[1741529863609,0.538,569.01,567.84,0.29772549]
[1741529864912,0.682,569.0,567.84,0.29772549]
[1741529865615,0.30615477,568.99,567.84,0.29772549]
[1741529865818,0.30615477,568.99,567.85,0.29772549]
[1741529866014,0.30615477,568.99,567.86,0.29772549]
[1741529866214,0.30615477,568.99,567.84,0.29772549]
[1741529866409,0.30615477,568.99,567.85,0.29772549]
[1741529866610,0.30615477,568.99,567.84,0.29772549]
[1741529866811,0.30615477,568.99,567.86,0.29772549]
[1741529867011,0.30615477,568.99,567.83,0.35221809]
[1741529867012,0.682,569.0,567.87,0.29772549]
[1741529867210,0.682,569.0,567.84,0.29772549]
[1741529867426,0.30612649,568.99,567.84,0.29772549]
[1741529867622,0.682,569.0,567.84,0.29772549]
[1741529868023,0.682,569.0,567.83,0.35221809]
[1741529868217,0.682,569.0,567.84,0.29747315]
[1741529868416,0.682,569.0,567.85,0.29747315]
[1741529868724,0.682,569.0,567.86,0.29747315]
[1741529868928,0.682,569.0,567.87,0.29747315]
[1741529869123,0.682,569.0,567.84,0.29747315]
[1741529869325,0.682,569.0,567.85,0.29747315]
[1741529869527,0.682,569.0,567.84,0.29747315]
[1741529869724,0.682,569.0,567.85,0.29747315]
[1741529869930,0.682,569.0,567.84,0.29747315]
[1741529870123,0.682,569.0,567.85,0.29747315]
[1741529870323,0.75,568.99,567.84,0.29747315]
[1741529870522,0.75,568.99,567.85,0.29747315]
[1741529870827,0.75,568.99,567.86,0.29747315]
[1741529871126,0.607,568.98,567.87,0.29747315]
[1741529871326,0.607,568.98,567.84,1.29433963]
[1741529871327,1.147,568.98,567.85,0.29747315]
[1741529871522,1.147,568.98,567.84,1.29433963]
[1741529871730,1.147,568.98,567.85,0.29746774]
[1741529872026,1.147,568.98,567.87,0.35219328]
[1741529872232,1.147,568.98,567.88,0.29746774]
[1741529872424,1.147,568.98,567.89,0.29746774]
[1741529872620,1.147,568.98,567.9,0.29746774]
[1741529872932,1.147,568.98,567.91,0.29746774]
[1741529873132,1.147,568.98,568.0,1.29433963]
[1741529873425,1.147,568.98,568.01,0.29746774]
[1741529873620,1.147,568.98,568.02,0.29746774]
[1741529873821,0.517,568.97,568.03,0.29746774]
[1741529874028,0.517,568.97,568.04,0.29746774]
[1741529874224,0.517,568.97,568.05,0.29746774]
[1741529874420,0.517,568.97,568.0,1.29433963]
[1741529874625,0.517,568.97,568.01,0.29728075]
[1741529874825,0.517,568.97,568.02,0.29728075]
[1741529875022,0.517,568.97,568.09,1.29433963]
[1741529875432,0.517,568.97,568.1,0.29728075]
[1741529875621,0.517,568.97,568.11,0.29728075]
[1741529875822,0.517,568.97,568.12,0.29728075]
[1741529876022,0.517,568.97,568.13,0.29728075]
[1741529876330,0.646,568.96,568.14,0.29728075]
[1741529876532,0.646,568.96,568.15,0.29728075]
[1741529876828,0.556,568.95,568.16,0.29728075]
[1741529877023,0.556,568.95,568.17,0.29724468]
[1741529877223,1.062,568.95,568.18,0.29724468]
[1741529877434,1.062,568.95,568.19,0.29724468]
[1741529877624,1.062,568.95,568.2,0.29724468]
[1741529877836,1.062,568.95,568.21,0.29724468]
[1741529878028,1.062,568.95,567.9,1.96928476]
[1741529878029,1.062,568.95,568.22,0.29724468]
[1741529878228,1.062,568.95,568.23,0.29724468]
[1741529878426,1.062,568.95,568.24,0.29724468]
[1741529878730,1.062,568.95,568.25,0.29724468]
[1741529878930,1.062,568.95,568.26,0.29724468]
[1741529879133,1.743,568.95,568.27,0.29724468]
[1741529879425,2.282,568.95,568.28,0.29724468]
[1741529879625,2.282,568.95,568.29,0.29724468]
[1741529879831,2.282,568.95,568.3,0.29724468]
[1741529880031,2.282,568.95,568.31,0.29724468]
[1741529880238,2.282,568.95,568.32,0.29724468]
[1741529880439,2.282,568.95,568.33,0.29724468]
[1741529880835,2.282,568.95,568.34,0.29724468]
[1741529881031,2.282,568.95,568.35,0.29724468]
[1741529881237,2.282,568.95,568.36,0.29724468]
[1741529881427,2.282,568.95,568.0,1.29433963]
[1741529881428,2.282,568.95,568.37,0.29724468]
[1741529881633,2.282,568.95,568.38,0.29724468]
[1741529881832,2.282,568.95,568.0,1.29433963]
[1741529881833,2.282,568.95,568.39,0.29724468]
[1741529882030,2.282,568.95,568.0,1.29433963]
[1741529882334,2.282,568.95,568.01,0.29713695]
[1741529882631,2.282,568.95,568.02,0.29713695]
[1741529883034,2.282,568.95,568.03,0.29713695]
[1741529883334,2.282,568.95,568.04,0.29713695]
[1741529883528,2.282,568.95,568.05,0.29713695]
[1741529883729,2.282,568.95,568.06,0.29713695]
[1741529883932,2.282,568.95,568.07,0.29713695]
[1741529884135,2.282,568.95,568.08,0.29713695]
[1741529884336,2.282,568.95,568.09,0.29713695]
[1741529884535,2.282,568.95,568.1,0.29713695]
[1741529884735,2.282,568.95,568.11,0.29713695]
[1741529884942,2.282,568.95,568.12,0.29713695]
[1741529885142,2.282,568.95,568.13,0.29713695]
[1741529885341,2.282,568.95,568.14,0.29713695]
[1741529885633,2.282,568.95,568.15,0.29713695]
[1741529885838,2.282,568.95,568.16,0.29713695]
[1741529886037,2.282,568.95,568.17,0.29713695]
[1741529886233,2.282,568.95,568.18,0.29713695]
[1741529887039,2.282,568.95,568.19,0.35199493]
[1741529887441,2.954,568.95,568.19,0.64913188]
[1741529887735,2.954,568.95,568.19,0.35199493]
[1741529888441,2.954,568.95,568.2,0.29705682]
[1741529888642,2.954,568.95,568.21,0.29705682]
[1741529888845,2.954,568.95,568.22,0.29705682]
[1741529889049,2.954,568.95,568.23,0.29705682]
[1741529889337,2.954,568.95,568.24,0.29705628]
[1741529889743,2.954,568.95,568.25,0.29705628]
[1741529889944,2.954,568.95,568.26,0.29705628]
[1741529890254,2.954,568.95,568.27,0.64900165]
[1741529890446,2.954,568.95,568.28,0.29705628]
[1741529890644,2.954,568.95,568.29,0.29705628]
[1741529890844,2.954,568.95,568.3,0.29705628]
[1741529891051,2.954,568.95,568.31,0.29705628]
[1741529891245,2.954,568.95,568.32,0.29705628]
[1741529891451,3.512,568.95,568.33,0.29705628]
[1741529891754,3.512,568.95,568.34,0.29705628]
[1741529891946,3.512,568.95,568.35,0.29705628]
[1741529892146,2.973,568.95,568.36,0.29705628]
[1741529892345,2.973,568.95,568.37,0.29705628]
[1741529892545,2.973,568.95,568.38,0.29705628]
[1741529892747,2.973,568.95,568.39,0.29705628]
[1741529892946,2.973,568.95,568.4,0.29693753]
[1741529893146,2.973,568.95,568.41,0.29693753]
[1741529893342,2.973,568.95,568.27,0.35194537]
[1741529893343,2.973,568.95,568.42,0.29693753]
[1741529893543,2.973,568.95,568.43,0.29693753]
[1741529893743,2.973,568.95,568.44,0.29693753]
[1741529893941,2.973,568.95,568.45,0.29693753]
[1741529894148,2.292,568.95,568.46,0.29693753]
[1741529894446,2.292,568.95,568.47,0.29693753]
[1741529894646,2.292,568.95,568.27,0.35194537]
[1741529894842,2.292,568.95,568.28,0.29683877]
[1741529895044,2.292,568.95,568.29,0.29683877]
[1741529895245,2.292,568.95,568.3,0.29683877]
[1741529895444,2.292,568.95,568.31,0.29683877]
[1741529895648,2.292,568.95,568.32,0.29683877]
[1741529895843,1.98629304,568.95,568.33,0.29683877]
[1741529896152,1.98629304,568.95,568.34,0.29683877]
[1741529896347,1.48029304,568.95,568.35,0.29683877]
[1741529896743,1.48029304,568.95,568.36,0.29683877]
[1741529896944,1.48029304,568.95,568.37,0.29683877]
[1741529897143,1.48029304,568.95,568.38,0.29683877]
[1741529897345,1.48029304,568.95,568.39,0.29683877]
[1741529897546,1.48029304,568.95,568.4,0.29683877]
[1741529897749,1.48029304,568.95,568.41,0.29683877]
[1741529897948,1.48029304,568.95,568.42,0.29683877]
[1741529898150,1.48029304,568.95,568.43,0.29683877]
[1741529898450,1.48029304,568.95,568.44,0.29683877]
[1741529898647,1.48029304,568.95,568.45,0.29683877]
[1741529898848,1.48029304,568.95,568.46,0.29683877]
[1741529899144,1.17461293,568.95,568.47,0.29683877]
[1741529899351,1.17461293,568.95,568.48,0.29683877]
[1741529899546,1.17461293,568.95,568.49,0.29683877]
[1741529899747,1.17461293,568.95,568.5,0.29683877]
[1741529899947,1.17461293,568.95,568.51,0.29683877]
[1741529900146,1.17461293,568.95,568.52,0.29683877]
[1741529900346,1.17461293,568.95,568.53,0.29683877]
[1741529900649,1.17461293,568.95,568.54,0.29683877]
[1741529900849,1.17461293,568.95,568.55,0.29683877]
[1741529901045,1.17461293,568.95,568.56,0.29683877]
[1741529901243,1.17461293,568.95,568.57,0.29683877]
[1741529901450,1.17461293,568.95,568.58,0.29683877]
[1741529901650,1.17461293,568.95,568.59,0.29683877]
[1741529901848,1.17461293,568.95,568.27,0.35194537]
[1741529902052,0.86894356,568.95,568.28,0.29673375]
[1741529902262,0.86894356,568.95,568.29,0.64866674]
[1741529902456,0.86894356,568.95,568.3,0.29673375]
[1741529902658,0.86894356,568.95,568.31,0.29673375]
[1741529902861,0.86894356,568.95,568.32,0.29673375]
[1741529903150,0.86894356,568.95,568.33,0.29673375]
[1741529903355,0.86894356,568.95,568.34,0.29673375]
[1741529903654,0.86894356,568.95,568.29,0.35193299]
[1741529903655,0.558,568.95,568.35,0.29672403]
[1741529903854,0.558,568.95,568.29,0.35193299]
[1741529903855,0.558,568.95,568.36,0.29672403]
[1741529904056,0.558,568.95,568.29,0.35193299]
[1741529904057,0.558,568.95,568.37,0.29672403]
[1741529904254,0.558,568.95,568.38,0.29672403]
[1741529904456,0.558,568.95,568.39,0.29672403]
[1741529904656,0.558,568.95,568.4,0.29672403]
[1741529904951,0.558,568.95,568.41,0.29672403]
[1741529905261,0.25235345,568.95,568.29,0.35193299]
[1741529905462,0.25235345,568.95,568.42,0.29668536]
[1741529905760,0.25235345,568.95,568.43,0.29668536]
[1741529905960,0.25235345,568.95,568.44,0.29668536]
[1741529906357,0.25235345,568.95,568.45,0.29668536]
[1741529906561,0.25235345,568.95,568.46,0.29668536]
[1741529906861,0.25235345,568.95,568.47,0.29668536]
[1741529907064,0.25235345,568.95,568.3,0.29668536]
[1741529907264,0.25235345,568.95,568.31,0.29668536]
[1741529907456,0.25235345,568.95,568.32,0.29668536]
[1741529907766,0.25235345,568.95,568.33,0.29668536]
[1741529907967,0.25235345,568.95,568.34,0.64858739]
[1741529908166,0.562,568.98,568.35,0.29668536]
[1741529908167,0.50870153,568.98,568.35,0.29668536]
[1741529908558,0.50870153,568.98,568.36,0.29668536]
[1741529908761,0.50870153,568.98,568.37,0.29668536]
[1741529909263,0.50870153,568.98,568.38,0.29668536]
[1741529909566,0.50870153,568.98,568.39,0.29668536]
[1741529909762,0.50870153,568.98,568.4,0.29668536]
[1741529909963,0.50870153,568.98,568.41,0.29668536]
[1741529910164,0.50870153,568.98,568.42,0.29668536]
[1741529910357,0.50870153,568.98,568.43,0.29668536]
[1741529910569,0.50870153,568.98,568.44,0.29668536]
[1741529910769,0.50870153,568.98,568.45,0.29668536]
[1741529911064,0.20310195,568.98,568.46,0.29668536]
[1741529911269,0.20310195,568.98,568.47,0.64850691]
[1741529911470,0.651,569.04,568.47,0.64850691]
[1741529911471,0.47052582,569.04,568.71,1.29433963]
[1741529911866,0.47052582,569.04,568.72,0.29668536]
[1741529912062,0.47052582,569.04,568.73,0.29668536]
[1741529912259,0.47052582,569.04,568.74,0.29668536]
[1741529912459,0.47052582,569.04,568.75,0.29668536]
[1741529912763,0.47052582,569.04,568.76,0.64832752]
[1741529912964,0.47052582,569.04,568.77,0.29668536]
[1741529913165,0.47052582,569.04,568.78,0.64831516]
[1741529913361,0.47052582,569.04,568.79,0.64830898]
[1741529913665,0.47052582,569.04,568.8,0.29668536]
[1741529913966,0.47052582,569.04,568.81,0.64829661]
[1741529914166,0.47052582,569.04,568.82,0.29668536]
[1741529914465,0.47052582,569.04,568.83,0.64829434]
[1741529914662,0.47052582,569.04,568.84,0.64828816]
[1741529914860,0.47052582,569.04,568.85,0.64828198]
[1741529915066,0.47052582,569.04,568.86,0.6482758]
[1741529915363,0.47052582,569.04,568.87,0.64826962]
[1741529915667,0.47052582,569.04,568.88,0.64826344]
[1741529915866,0.47052582,569.04,568.89,0.64825726]
[1741529916060,0.47052582,569.04,568.9,0.64825499]
[1741529916265,0.47052582,569.04,568.91,0.64824881]
[1741529916466,0.47052582,569.04,568.92,0.64824263]
[1741529916766,0.47052582,569.04,568.93,0.64823645]
[1741529916967,0.47052582,569.04,568.94,0.64823027]
[1741529917266,0.47052582,569.04,568.95,0.64822409]
[1741529917466,0.47052582,569.04,568.96,0.29669936]
[1741529917670,0.47052582,569.04,568.97,0.29669936]
[1741529917961,0.47052582,569.04,568.98,0.29669936]
[1741529918166,0.552,569.08,568.99,0.29669936]
[1741529918369,0.552,569.08,569.0,0.29669936]
[1741529918568,0.552,569.08,569.01,0.29669936]
[1741529918768,0.552,569.08,568.95,0.35152473]
[1741529918769,0.552,569.08,569.02,0.29669936]
[1741529919069,0.552,569.08,569.03,0.29669936]
[1741529919368,0.552,569.08,569.04,0.29669936]
[1741529919668,0.552,569.08,569.05,0.29669936]
[1741529919968,0.552,569.08,569.06,0.64815614]
[1741529920167,0.552,569.08,569.07,0.64814997]
[1741529922669,0.2465332,569.08,569.07,0.64814997]
[1741529924072,0.03428318,569.08,569.07,0.64814997]
[1741529925173,0.03428318,569.08,569.07,0.64800348]
[1741529925567,0.78083783,569.18,569.07,0.64800348]
[1741529925770,0.78083783,569.18,569.08,0.6479973]
[1741529925971,0.78083783,569.18,569.09,0.64799113]
[1741529926170,0.78083783,569.18,569.1,0.64798495]
[1741529926367,0.78083783,569.18,569.11,0.29655287]
[1741529926572,0.78083783,569.18,569.12,0.6479726]
[1741529926775,0.78083783,569.18,569.13,0.35141356]
[1741529926974,0.78083783,569.18,569.14,0.29654146]
[1741529927274,0.78083783,569.18,569.15,0.64794267]
[1741529927474,0.78083783,569.18,569.16,0.35139503]
[1741529927673,0.78083783,569.18,569.17,0.29654146]
[1741529927974,0.78083783,569.18,569.17,0.64793032]
[1741529928774,0.47540589,569.18,569.17,0.64793082]
[1741529930481,0.47540589,569.18,569.17,0.64795044]
[1741529933183,0.0758007,569.18,569.17,0.64795044]
[1741529933383,0.0441534,569.18,569.17,0.64795044]
[1741529933579,0.506,569.41,569.17,0.64795044]
[1741529933784,0.506,569.41,569.18,0.64794427]
[1741529933985,0.506,569.41,569.19,0.64793809]
[1741529934185,0.506,569.41,569.2,0.29656158]
[1741529934487,0.506,569.41,569.21,0.29656158]
[1741529934690,0.506,569.41,569.22,0.29656158]
[1741529934884,0.506,569.41,569.23,0.29656158]
[1741529935084,0.506,569.41,569.24,0.29656158]
[1741529935285,0.506,569.41,569.23,0.35135182]
[1741529935286,0.19049985,569.36,569.3,1.55320756]
[1741529935481,0.19049985,569.36,569.31,0.29656158]
[1741529935688,0.19049985,569.36,569.32,0.29656158]
[1741529935982,0.19049985,569.36,569.3,1.55320756]
[1741529935983,0.19049985,569.36,569.33,0.64795334]
[1741529936186,0.19049985,569.36,569.34,0.64794717]
[1741529936387,0.19049985,569.36,569.35,0.647941]
[1741529937784,0.19049985,569.36,569.35,0.35127777]
[1741529938090,0.19049985,569.36,569.35,0.64793769]
[1741529940695,0.13200252,569.48,569.35,0.64793769]
[1741529940891,0.13200252,569.48,569.36,0.29665992]
[1741529941095,0.13200252,569.48,569.35,0.35127777]
[1741529941289,0.13200252,569.48,569.37,0.2966294]
[1741529941489,0.13200252,569.48,569.35,0.35127777]
[1741529941490,0.13200252,569.48,569.36,0.2966294]
[1741529941796,0.13200252,569.48,569.37,0.64789483]
[1741529941995,0.13200252,569.48,569.38,0.2966294]
[1741529942992,0.13200252,569.48,569.39,0.35125309]
[1741529943292,0.13200252,569.48,569.4,0.2966294]
[1741529943493,0.13200252,569.48,569.41,0.35124075]
[1741529943689,0.13200252,569.48,569.42,0.2966294]
[1741529943893,0.13200252,569.48,569.43,0.35122842]
[1741529944092,0.13200252,569.48,569.44,0.2966294]
[1741529944295,0.13200252,569.48,569.45,0.35121608]
[1741529944597,0.13200252,569.48,569.46,0.2966294]
[1741529944898,0.13200252,569.48,569.47,0.35120375]
[1741529945195,0.589,569.6,569.47,0.64783315]
[1741529945396,0.589,569.6,569.48,0.2966294]
[1741529945594,0.589,569.6,569.49,0.35119141]
[1741529945895,0.589,569.6,569.5,0.2966294]
[1741529946294,0.589,569.6,569.51,0.35117908]
[1741529946499,0.589,569.6,569.52,0.2966294]
[1741529946697,0.09938417,569.6,569.53,0.2966294]
[1741529947000,0.09938417,569.6,569.54,0.64778998]
[1741529947299,0.09938417,569.6,569.55,0.64778382]
[1741529947493,0.09938417,569.6,569.56,0.2966294]
[1741529947694,0.09938417,569.6,569.57,0.2966294]
[1741529947892,0.09938417,569.6,569.55,0.35115442]
[1741529948099,0.09938417,569.6,569.56,0.29653674]
[1741529948299,0.09938417,569.6,569.57,0.29653674]
[1741529948500,0.09938417,569.6,569.55,0.35115442]
[1741529948701,0.09938417,569.6,569.56,0.29650172]
[1741529949000,0.09938417,569.6,569.57,0.6476438]
[1741529949196,0.05795005,569.6,569.58,0.64763764]
[1741529949399,0.05795005,569.6,569.59,0.64763148]
[1741529949598,0.00887913,569.6,569.59,0.64763148]
[1741529950803,0.18939255,569.76,569.59,0.64763148]
[1741529950995,0.18939255,569.76,569.6,0.64762531]
[1741529951200,0.18939255,569.76,569.61,0.64761915]
[1741529951496,0.18939255,569.76,569.62,0.64761298]
[1741529951696,0.18939255,569.76,569.63,0.3511051]
[1741529951894,0.18939255,569.76,569.64,0.29654061]
[1741529952101,0.18939255,569.76,569.65,0.64763338]
[1741529952295,0.18939255,569.76,569.66,0.64762722]
[1741529952502,0.18939255,569.76,569.67,0.64762106]
[1741529952801,0.18939255,569.76,569.68,0.64761489]
[1741529953002,0.18939255,569.76,569.69,0.64760873]
[1741529953201,0.18939255,569.76,569.7,0.64760257]
[1741529953405,0.18939255,569.76,569.73,1.30648228]
[1741529953599,0.18939255,569.76,569.74,0.64754919]
[1741529953795,0.18939255,569.76,569.75,0.35103115]
[1741529954001,0.18939255,569.76,569.75,0.64754303]
[1741529958207,0.03411346,569.76,569.75,0.64754303]
[1741529961000,0.00572662,569.76,569.75,0.64754303]
[1741529961300,1.25,569.97,569.75,0.64754303]
[1741529961504,1.25,569.97,569.76,0.29651188]
[1741529961703,1.25,569.97,569.77,0.29651188]
[1741529961900,1.25,569.97,569.78,0.29651188]
[1741529962106,1.25,569.97,569.79,0.29651188]
[1741529962299,1.25,569.97,569.8,0.64751223]
[1741529962501,1.25,569.97,569.81,0.64750607]
[1741529962705,1.25,569.97,569.82,0.64749991]
[1741529962900,1.25,569.97,569.83,0.64749375]
[1741529963105,1.25,569.97,569.84,0.64748759]